[Event "Prague Festival Challengers 2024"]
[Site "Prague"]
[Date "2024.03.02"]
[Round "5.5"]
[White "Hrbek, Stepan"]
[Black "Stalmach, Richard"]
[Result "0-1"]
[ECO "D35"]
[WhiteElo "2426"]
[BlackElo "2433"]
[Annotator "RC"]
[PlyCount "136"]
[EventDate "2024.02.22"]
[EventType "tourn"]
[EventCountry "CZE"]
[SourceTitle "playchess.com"]
[Source "ChessBase"]
[SourceQuality "1"]
[TimeControl "40/5400+30:1800+30"]

1. d4 {[%emt 0:00:04]} Nf6 {[%emt 0:00:39]} 2. c4 {[%emt 0:00:08]} e6 {[%emt 0:00:08]} 3. Nc3 {[%emt 0:00:08]} d5 {[%emt 0:00:16]} 4. cxd5 {[%emt 0:00:17]} exd5 {[%emt 0:00:05]} 5. Bg5 {[%emt 0:00:12]} c6 {[%emt 0:00:17]} 6. e3 {[%emt 0:00:23]} Bd6 {[%emt 0:05:01]} 7. Bd3 {[%emt 0:03:55]} O-O {[%emt 0:01:53]} 8. Nge2 {[%emt 0:03:59]} Re8 {[%emt 0:03:08]} 9. Qc2 {[%emt 0:02:47]} h6 {[%emt 0:00:21]} 10. Bf4 {[%emt 0:00:43]} a5 {[%emt 0:05:07]} 11. O-O {[%emt 0:05:23]} Na6 {[%emt 0:00:13]} 12. a3 {[%emt 0:00:12]} Nc7 {[%emt 0:00:10]} 13. h3 {[%emt 0:05:25]} Ne6 {[%emt 0:03:19]} 14. Bxd6 {[%emt 0:05:44]} Qxd6 {[%emt 0:00:06]} 15. Rad1 {[%emt 0:07:50]} h5 {[%emt 0:03:40]} 16. Rfe1 {[%emt 0:10:21]} Bd7 {[%emt 0:08:39]} 17. Na4 {[%emt 0:08:26]} Rad8 {[%emt 0:07:11]} 18. Qb3 {[%emt 0:08:59]} h4 {[%emt 0:14:08]} 19. Qb6 {[%emt 0:03:44]} Nh5 {[%emt 0:03:56]} 20. Nc5 {[%emt 0:07:46]} Ng5 {[%emt 0:01:54]} 21. Nxd7 {[%emt 0:03:34]} Qxd7 {[%emt 0:00:49]} 22. Nc3 {[%emt 0:00:39]} Qc8 {[%emt 0:04:33]} 23. Be2 {[%emt 0:04:34]} Nf6 {[%emt 0:02:09]} 24. Bf1 {[%emt 0:00:07]} Rd6 {[%emt 0:01:23]} 25. Qxa5 {[%emt 0:01:29]} Nh5 {[%emt 0:01:28]} 26. f4 {[%emt 0:05:24]} Nxh3+ {[%emt 0:12:20]} 27. gxh3 {[%emt 0:00:06]} Rg6+ {[%emt 0:00:07]} 28. Kf2 {[%emt 0:02:56]} Rg3 {[%emt 0:01:15]} 29. Ke2 {[%emt 0:02:21]} Nxf4+ {[%emt 0:00:36]} 30. Kd2 {[%emt 0:00:23]} Nxh3 {[%emt 0:00:09]} 31. Bxh3 {[%emt 0:03:13]} Qxh3 {[%emt 0:02:02]} 32. Qc7 {[%emt 0:00:36]} Rg2+ {[%emt 0:05:10]} 33. Kc1 {[%emt 0:00:49]} Rxe3 {[%emt 0:01:17]} 34. Kb1 {[%emt 0:01:42]} Qf5+ {[%emt 0:01:03]} 35. Ka1 {[%emt 0:01:15]} Qf2 {[%emt 0:03:43]} 36. Ne2 {[%emt 0:00:58]} Kh7 {[%emt 0:00:28]} 37. Qd8 {[%emt 0:01:49]} Rxe2 {[%emt 0:00:12]} 38. Rxe2 {[%emt 0:00:28]} Qxe2 {[%emt 0:00:05]} 39. Qxh4+ {[%emt 0:00:03]} Kg6 {[%emt 0:00:05]} 40. Rb1 {[%emt 0:00:06]} Qf2 {[%emt 0:01:52]} 41. Qh1 {[%emt 0:04:34]} f5 {[%emt 0:00:00]} 42. Ka2 {[%emt 0:01:49]} f4 {[%emt 0:01:11]} 43. Qh3 {[%emt 0:01:06]} Qe2 {[%emt 0:00:42]} 44. Qd7 {[%emt 0:00:54]} f3 {[%emt 0:03:53]} 45. Qd6+ {[%emt 0:01:46]} Kf5 {[%emt 0:00:06]} 46. Qd7+ {[%emt 0:01:08]} Kg5 {[%emt 0:03:12]} 47. Qxg7+ {[%emt 0:00:38]} Kf4 {[%emt 0:00:04]} 48. Qxb7 {[%emt 0:02:41]} f2 {[%emt 0:04:48]} 49. Rc1 {[%emt 0:01:25]} Rg5 {[%emt 0:06:38]} 50. Qc7+ {[%emt 0:03:41]} Kf3 {[%emt 0:01:28]} 51. Qxc6 {[%emt 0:04:45]} Qd2 {[%emt 0:08:45]} 52. Rh1 {[%emt 0:03:53]} Qxd4 {[%emt 0:01:11]} 53. Rc1 {[%emt 0:01:42]} Qd2 {[%emt 0:06:03]} 54. Rh1 {[%emt 0:01:14]} Rg1 {[%emt 0:02:36]} 55. Rh3+ {[%emt 0:06:11]} Kg2 {[%emt 0:01:47]} 56. Rc3 {[%emt 0:00:05]} f1=Q {[%emt 0:01:13]} 57. Qg6+ {[%emt 0:00:40]} Kh1 {[%emt 0:00:14]} 58. Qh5+ {[%emt 0:00:36]} Qh2 {[%emt 0:00:05]} 59. Qxd5+ {[%emt 0:00:08]} Qfg2 {[%emt 0:00:20]} 60. Qb5 {[%emt 0:00:28]} Qg8+ {[%emt 0:00:25]} 61. Rb3 {[%emt 0:00:43]} Qf7 {[%emt 0:01:25]} 62. Qc6+ {[%emt 0:00:50]} Rg2 {[%emt 0:00:55]} 63. Qc1+ {[%emt 0:00:04]} Qg1 {[%emt 0:00:03]} 64. Qh6+ {[%emt 0:00:06]} Rh2 {[%emt 0:00:02]} 65. Qc6+ {[%emt 0:01:39]} Qg2 {[%emt 0:00:16]} 66. Qc3 {[%emt 0:01:13]} Rh3 {[%emt 0:02:54]} 67. Qe1+ {[%emt 0:00:24]} Kh2 {[%emt 0:00:27]} 68. Qe5+ {[%emt 0:00:21]} Rg3 {[%emt 0:00:23]} 0-1

[Event "Prague Festival Challengers 2024"]
[Site "Prague"]
[Date "2024.03.04"]
[Round "6.1"]
[White "Gurel, Ediz"]
[Black "Stalmach, Richard"]
[Result "1/2-1/2"]
[ECO "B92"]
[WhiteElo "2560"]
[BlackElo "2433"]
[Annotator "TA"]
[PlyCount "76"]
[EventDate "2024.02.22"]
[EventType "tourn"]
[EventCountry "CZE"]
[SourceTitle "playchess.com"]
[Source "ChessBase"]
[SourceQuality "1"]
[TimeControl "40/5400+30:1800+30"]

{[%evp 19,76,12,16,-7,9,0,0,2,14,11,0,3,6,0,11,0,11,5,12,7,8,0,0,-8,0,0,-1,0,0,-25,-8,-17,-9,-34,0,0,0,0,0,0,0,-4,0,0,0,0,0,0,0,0,0,0,0,0,0,0,0,0,0]} 1. e4 {[%emt 0:00:06]} c5 {[%emt 0:00:04]} 2. Nf3 {[%emt 0:00:07]} d6 {[%emt 0:00:04]} 3. d4 {[%emt 0:00:09]} cxd4 {[%emt 0:00:05]} 4. Nxd4 {[%emt 0:00:04]} Nf6 {[%emt 0:00:05]} 5. Nc3 {[%emt 0:00:05]} a6 {[%emt 0:00:04]} 6. Be2 {[%emt 0:00:24]} e5 {[%emt 0:01:05]} 7. Nb3 {[%emt 0:00:05]} Be7 {[%emt 0:00:00]} 8. Bg5 {[%emt 0:01:01]} Be6 {[%emt 0:00:03]} 9. Bxf6 {[%emt 0:00:59]} Bxf6 {[%emt 0:00:04]} 10. Qd3 {[%emt 0:00:25]} O-O {[%emt 0:00:17]} 11. Nd5 {[%emt 0:06:21]} Be7 {[%emt 0:06:50]} 12. Rd1 {[%emt 0:03:26]} Bxd5 {[%emt 0:04:50]} 13. Qxd5 {[%emt 0:00:23]} Qc7 {[%emt 0:01:04]} 14. O-O {[%emt 0:07:30]} Nd7 {[%emt 0:01:22]} 15. c3 {[%emt 0:00:59]} b5 {[%emt 0:01:03]} 16. Qd3 {[%emt 0:02:50]} Nb6 {[%emt 0:01:29]} 17. Rfe1 {[%emt 0:03:12]} Rfd8 {[%emt 0:01:55]} 18. g3 {[%emt 0:02:55]} Rac8 {[%emt 0:09:22]} 19. Bg4 {[%emt 0:03:55]} Rb8 {[%emt 0:00:06]} 20. h4 {[%emt 0:01:56]} d5 {[%emt 0:03:23]} 21. exd5 {[%emt 0:03:40]} Rxd5 {[%emt 0:01:28]} 22. Qe4 {[%emt 0:03:46]} Rxd1 {[%emt 0:13:05]} 23. Rxd1 {[%emt 0:03:20]} g6 {[%emt 0:00:13]} 24. Bf3 {[%emt 0:08:36]} Nc4 {[%emt 0:08:26]} 25. Qe2 {[%emt 0:00:33]} Rd8 {[%emt 0:01:04]} 26. Bd5 {[%emt 0:04:40]} Nb6 {[%emt 0:01:16]} 27. Qf3 {[%emt 0:00:36] The position is equal.} Nxd5 {[%emt 0:01:12]} 28. Rxd5 {[%emt 0:00:02]} Rxd5 {[%emt 0:00:06]} 29. Qxd5 $11 {[%emt 0:00:03][%mdl 4096] Endgame. KQB-KQN} Qd6 {[%emt 0:00:05]} 30. Qb7 {[%emt 0:02:10]} f5 {[%emt 0:11:50]} 31. Kg2 {[%emt 0:03:13]} Bd8 {[%emt 0:02:37]} 32. Qc8 {[%emt 0:03:16]} Kf7 {[%emt 0:03:15]} 33. Nc5 {[%emt 0:02:12]} Qd5+ {[%emt 0:02:06]} 34. Kh2 {[%emt 0:00:31]} Be7 {[%emt 0:02:33]} 35. Nxa6 {[%emt 0:06:03][%cal Oc8e8]} Qf3 {[%emt 0:01:30]} 36. Kg1 {[%emt 0:00:02]} Qd1+ {[%emt 0:00:04]} 37. Kg2 {[%emt 0:00:12] Strongly threatening Nc7.} Qd5+ {[%emt 0:00:29]} 38. Kg1 {[%emt 0:00:06][%cal Oc8e8]} Qd1+ {[%emt 0:00:18] A balanced but interesting game.   Weighted Error Value: White=0.05 (flawless) /Black=0.04 (flawless) .  Inaccurate:     	---       	Black=1      OK:         	White=12    	Black=11     Best:        	---       	Black=1} 1/2-1/2

[Event "Prague Festival Challengers 2024"]
[Site "Prague"]
[Date "2024.03.04"]
[Round "6.2"]
[White "L'Ami, Erwin"]
[Black "Hrbek, Stepan"]
[Result "1-0"]
[ECO "A32"]
[WhiteElo "2627"]
[BlackElo "2426"]
[Annotator "TA"]
[PlyCount "89"]
[EventDate "2024.02.22"]
[EventType "tourn"]
[EventCountry "CZE"]
[SourceTitle "playchess.com"]
[Source "ChessBase"]
[SourceQuality "1"]
[TimeControl "40/5400+30:1800+30"]

{[%evp 11,89,13,30,35,29,20,38,0,25,20,35,24,18,35,37,17,23,45,66,59,56,47,71,75,84,47,95,98,101,96,118,124,108,108,102,102,139,139,164,165,170,163,165,137,142,132,203,183,247,240,331,311,331,334,370,371,333,323,324,313,314,279,308,304,366,358,417,393,404,378,447,347,503,520,593,593,652,605,631,613]} 1. d4 {[%emt 0:00:04]} Nf6 {[%emt 0:00:09]} 2. c4 {[%emt 0:00:08]} e6 {[%emt 0:00:09]} 3. Nf3 {[%emt 0:00:06]} c5 {[%emt 0:00:18]} 4. g3 {[%emt 0:01:01]} cxd4 {[%emt 0:00:26]} 5. Nxd4 {[%emt 0:00:08]} Bb4+ {[%emt 0:02:15]} 6. Bd2 {[%emt 0:05:35]} Bc5 {[%emt 0:10:13]} 7. Nb3 {[%emt 0:01:50]} Be7 {[%emt 0:01:55]} 8. Bg2 {[%emt 0:00:29]} d5 {[%emt 0:01:49]} 9. Ba5 {[%emt 0:04:18] White is slightly better.} Qd7 {[%emt 0:06:23]} 10. cxd5 {[%emt 0:07:48]} exd5 {[%emt 0:01:16]} 11. Bc3 {[%emt 0:05:30]} O-O {[%emt 0:03:39]} 12. Bxf6 {[%emt 0:03:48]} Bxf6 {[%emt 0:00:25]} 13. Nc3 {[%emt 0:00:08]} Bxc3+ {[%emt 0:07:41]} 14. bxc3 {[%emt 0:00:38]} Qc7 {[%emt 0:09:20]} 15. O-O {[%emt 0:05:51]} (15. Bxd5 Bh3 $11) 15... Qxc3 {[%emt 0:07:26]} 16. Rc1 {[%emt 0:13:31]} Qf6 {[%emt 0:06:01]} 17. Qxd5 {[%emt 0:03:33]} Nc6 {[%emt 0:02:07]} 18. Qb5 {[%emt 0:05:48][%cal Oe2e3]} Nd4 {[%emt 0:15:03] Black is on the road to losing.} (18... Qb2 $14) 19. Nxd4 $16 {[%emt 0:01:56]} Qxd4 {[%emt 0:00:04]} 20. Rfd1 {[%emt 0:08:15] White is more active.} Qb6 {[%emt 0:00:12]} 21. Qxb6 {[%emt 0:02:22]} axb6 {[%emt 0:00:07]} 22. Bd5 {[%emt 0:00:10]} Ra5 {[%emt 0:07:09]} 23. Rb1 {[%emt 0:07:38]} b5 {[%emt 0:01:04] [#]} 24. Rbc1 $1 {[%emt 0:04:10]} Bd7 {[%emt 0:01:27][%cal Od7c6]} 25. Rc7 $1 {[%emt 0:00:18]} (25. Bxb7 $6 Be6 $14) 25... Bc6 {[%emt 0:00:21]} 26. Bb3 {[%emt 0:00:14][%cal Oc7f7] Hoping for Rxf7!} g5 {[%emt 0:03:56]} 27. h4 {[%emt 0:04:59]} gxh4 {[%emt 0:06:23]} 28. gxh4 {[%emt 0:01:00]} Kg7 {[%emt 0:01:22]} (28... b4 $16 29. Rd4 Rf5) 29. Rd4 {[%emt 0:00:35]} Raa8 {[%emt 0:01:39]} (29... b4 {might work better.} 30. Rg4+ (30. Rxb4 Rf5 $18) 30... Kf6 31. Rxb4 Rf5) 30. f3 $18 {[%emt 0:02:48]} h5 {[%emt 0:01:08] [#]} 31. Rf4 $1 {[%emt 0:00:56]} Be8 {[%emt 0:00:08]} 32. Rxb7 {[%emt 0:02:27]} Rc8 {[%emt 0:00:05]} 33. Rf5 {[%emt 0:01:32]} Kg6 {[%emt 0:00:52]} 34. Rg5+ {[%emt 0:00:36]} Kh6 {[%emt 0:00:06]} 35. Kf2 {[%emt 0:00:36]} f6 {[%emt 0:01:16]} 36. Rgg7 {[%emt 0:00:26]} Bg6 {[%emt 0:01:23] Prevents Rh7+} 37. Rge7 {[%emt 0:01:16]} Rc5 {[%emt 0:00:11]} 38. Rb6 {[%emt 0:01:35]} Bc2 {[%emt 0:00:06]} 39. e4 {[%emt 0:03:03]} Bxb3 {[%emt 0:00:34]} 40. axb3 {[%emt 0:00:04][%cal Ba2b3,Bb3b4][%mdl 32] KRR-KRR} Kg6 {[%emt 0:03:00]} 41. b4 {[%emt 0:32:44]} Rc4 {[%emt 0:10:53]} (41... Rc1 {was called for.} 42. Ree6 (42. Rxb5 Rh1 $18) 42... Rh1) 42. Rxb5 {[%emt 0:00:00] White is clearly winning.} Rc6 {[%emt 0:00:04]} 43. Kg3 {[%emt 0:00:00]} Kh6 {[%emt 0:04:05]} 44. Reb7 {[%emt 0:00:00]} Rc1 {[%emt 0:02:45]} 45. Rb8 {[%emt 0:00:00] Weighted Error Value: White=0.08 (flawless) /Black=0.29 (precise) .  Mistake:       	---       	Black=4      Inaccurate:     	White=2     	Black=2      OK:         	White=17    	Black=13     Best:        	White=3     	Black=1      Strong:       	White=2     	---} 1-0

[Event "Prague Festival Challengers 2024"]
[Site "Prague"]
[Date "2024.03.04"]
[Round "6.3"]
[White "Rodshtein, Maxim"]
[Black "Korobov, Anton"]
[Result "1-0"]
[ECO "B90"]
[WhiteElo "2580"]
[BlackElo "2663"]
[Annotator "TA"]
[PlyCount "115"]
[EventDate "2024.02.22"]
[EventType "tourn"]
[EventCountry "CZE"]
[SourceTitle "playchess.com"]
[Source "ChessBase"]
[SourceQuality "1"]
[TimeControl "40/5400+30:1800+30"]

{[%evp 46,115,12,0,41,39,64,60,49,51,44,20,25,-9,26,5,28,31,20,43,56,0,0,0,0,0,0,0,0,0,0,0,0,0,0,0,0,0,18,9,27,19,20,20,16,27,21,25,25,13,19,0,109,105,96,111,118,116,111,116,119,126,105,10,9,8,8,8,564,556,29984,29985]} 1. e4 {[%emt 0:00:06]} c5 {[%emt 0:00:09]} 2. Nf3 {[%emt 0:00:06]} d6 {[%emt 0:00:05]} 3. d4 {[%emt 0:00:13]} cxd4 {[%emt 0:00:06]} 4. Nxd4 {[%emt 0:00:03]} Nf6 {[%emt 0:00:07]} 5. Nc3 {[%emt 0:00:05]} a6 {[%emt 0:00:05]} 6. Be3 {[%emt 0:00:33]} e5 {[%emt 0:00:40]} 7. Nb3 {[%emt 0:00:11]} Be6 {[%emt 0:00:17]} 8. Qd2 {[%emt 0:01:12]} Nbd7 {[%emt 0:01:36]} 9. f3 {[%emt 0:01:09]} h5 {[%emt 0:00:18]} 10. Nd5 {[%emt 0:00:42] B90: Sicilian Najdorf: Unusual White 6th moves, 6 Be3 Ng4 and 6 Be3 e5.} Nxd5 {[%emt 0:00:08]} 11. exd5 {[%emt 0:00:06]} Bf5 {[%emt 0:00:03]} 12. Be2 {[%emt 0:06:31]} Rc8 {[%emt 0:08:22]} 13. c4 {[%emt 0:06:19]} b6 {[%emt 0:03:15]} 14. O-O {[%emt 0:00:45]} g6 $146 {[%emt 0:00:37]} ({Predecessor:} 14... h4 15. Rac1 Qf6 16. c5 bxc5 17. Bxa6 Ra8 18. Bb5 Be7 19. Na5 O-O 20. a4 Qg6 21. Nc6 Bf6 22. b4 e4 23. fxe4 Bxe4 24. Rxf6 Qxf6 25. Bg5 {1-0 Palac,M (2584)-Gabuzyan,H (2565) Padova op-A 17th 2014 (5)}) 15. f4 {[%emt 0:10:10]} Bg7 {[%emt 0:01:23]} 16. Rac1 {[%emt 0:17:40]} O-O {[%emt 0:01:35]} 17. fxe5 {[%emt 0:07:14]} Nxe5 {[%emt 0:00:41]} 18. h3 {[%emt 0:01:08]} Re8 {[%emt 0:09:43]} 19. Nd4 {[%emt 0:01:08]} Bd7 {[%emt 0:01:44]} 20. Bg5 {[%emt 0:08:39]} Qc7 {[%emt 0:00:27]} 21. Kh1 {[%emt 0:01:17]} f5 {[%emt 0:01:49]} 22. b4 {[%emt 0:05:02]} Kh7 {[%emt 0:05:16]} 23. Bf4 {[%emt 0:03:34]} Qd8 {[%emt 0:11:00]} 24. Nf3 {[%emt 0:00:43]} Nf7 {[%emt 0:03:46]} (24... Nxf3 $5 25. Rxf3 Re4 $14) 25. Bd3 {[%emt 0:07:39]} Bf6 {[%emt 0:01:30]} 26. Qf2 {[%emt 0:00:32]} Kg7 {[%emt 0:03:59]} 27. Be3 {[%emt 0:02:09]} Rb8 {[%emt 0:00:42]} 28. Nd4 {[%emt 0:07:16]} Bh4 {[%emt 0:08:29]} 29. Qd2 {[%emt 0:04:14]} (29. Qg1 $5) 29... Rxe3 {[%emt 0:02:23]} 30. Qxe3 {[%emt 0:00:02]} Bg5 {[%emt 0:00:08]} 31. Qf2 {[%emt 0:00:25]} Bxc1 {[%emt 0:00:33]} 32. Rxc1 {[%emt 0:00:04]} Qf6 {[%emt 0:02:25]} 33. Nf3 {[%emt 0:03:19]} (33. b5 $1 $14) 33... f4 {[%emt 0:05:00]} 34. Rf1 {[%emt 0:03:34]} g5 {[%emt 0:03:43]} 35. Bb1 {[%emt 0:00:19]} Re8 {[%emt 0:04:32]} 36. Qc2 {[%emt 0:01:14]} g4 {[%emt 0:12:40]} 37. Qh7+ {[%emt 0:00:05]} Kf8 {[%emt 0:00:03]} 38. hxg4 {[%emt 0:00:33]} Bxg4 {[%emt 0:00:05]} (38... hxg4 39. Nh4 Ne5 40. Ng6+ Nxg6 41. Bxg6) 39. Qg6 {[%emt 0:03:20]} Qxg6 {[%emt 0:07:07]} 40. Bxg6 {[%emt 0:00:03]} Re3 {[%emt 0:00:01]} 41. Nd4 {[%emt 0:05:31]} Ne5 {[%emt 0:03:34]} 42. Rxf4+ {[%emt 0:00:17]} Kg7 {[%emt 0:00:02]} 43. Bf5 {[%emt 0:07:14]} Kh6 {[%emt 0:18:30]} 44. Bxg4 {[%emt 0:08:07]} Re1+ {[%emt 0:00:05]} 45. Kh2 {[%emt 0:00:07]} Nxg4+ {[%emt 0:00:32]} 46. Kg3 {[%emt 0:00:38]} Rc1 {[%emt 0:00:22]} 47. Re4 {[%emt 0:04:28]} (47. Nf5+ Kg5 $11) 47... Kg5 {[%emt 0:04:24]} 48. Ne6+ {[%emt 0:02:35]} Kf6 {[%emt 0:02:57]} (48... Kg6 $1 $11 {keeps the balance.}) 49. c5 $1 $16 {[%emt 0:03:09]} bxc5 {[%emt 0:00:24]} 50. bxc5 {[%emt 0:00:04]} dxc5 {[%emt 0:00:17]} 51. d6 {[%emt 0:00:11]} Rd1 {[%emt 0:00:53]} 52. Nxc5 {[%emt 0:00:10]} Rd5 {[%emt 0:04:36] [#]} (52... Rxd6 $2 53. Rxg4 Rd5 (53... hxg4 $2 54. Ne4+ Kf5 55. Nxd6+ $18) 54. Rf4+ Kg6 55. Nxa6 $18) 53. Rf4+ $1 {[%emt 0:04:32]} (53. Nxa6 Kg5 54. Kf3 Rd3+ 55. Ke2 Rxd6 $14) 53... Kg6 {[%emt 0:01:24]} 54. Nb7 {[%emt 0:00:29]} ({But not} 54. Nxa6 $6 Kg5 $11) (54. d7 $16 Ne5 55. Nxa6) 54... Kg5 $11 {[%emt 0:00:29]} 55. Rf1 {[%emt 0:00:32]} h4+ {[%emt 0:01:01]} 56. Kh3 $1 {[%emt 0:00:29]} Rd2 $2 {[%emt 0:01:05][%mdl 8192] [#]} (56... Ne5 $11) 57. Nc5 $1 $18 {[%emt 0:00:29]} Rd5 {[%emt 0:01:16]} 58. Ne6+ {[%emt 0:00:14]} ({And not} 58. Nxa6 Rd3+ 59. Rf3 Rd1 $11) 1-0

[Event "Prague Festival Challengers 2024"]
[Site "Prague"]
[Date "2024.03.04"]
[Round "6.4"]
[White "Mishra, Abhimanyu"]
[Black "Vaishali, Rameshbabu"]
[Result "1-0"]
[ECO "B31"]
[WhiteElo "2627"]
[BlackElo "2481"]
[Annotator "RC"]
[PlyCount "209"]
[EventDate "2024.02.22"]
[EventType "tourn"]
[EventCountry "CZE"]
[SourceTitle "playchess.com"]
[Source "ChessBase"]
[SourceQuality "1"]
[TimeControl "40/5400+30:1800+30"]

1. e4 {[%emt 0:00:01]} c5 {[%emt 0:00:19]} 2. Nf3 {[%emt 0:00:05]} Nc6 {[%emt 0:00:10]} 3. Bb5 {[%emt 0:00:14]} g6 {[%emt 0:00:17]} 4. O-O {[%emt 0:00:26]} Bg7 {[%emt 0:00:07]} 5. c3 {[%emt 0:00:41]} e5 {[%emt 0:00:21]} 6. d4 {[%emt 0:00:34]} cxd4 {[%emt 0:00:06]} 7. cxd4 {[%emt 0:00:06]} exd4 {[%emt 0:00:05]} 8. Bf4 {[%emt 0:00:13]} a6 {[%emt 0:00:12]} 9. Ba4 {[%emt 0:00:11]} Nge7 {[%emt 0:00:11]} 10. Bd6 {[%emt 0:00:12]} b5 {[%emt 0:00:15]} 11. Bb3 {[%emt 0:00:10]} Bb7 {[%emt 0:00:10]} 12. Re1 {[%emt 0:00:28]} Nc8 {[%emt 0:00:27]} 13. e5 {[%emt 0:00:19]} Nxd6 {[%emt 0:00:13]} 14. exd6+ {[%emt 0:00:10]} Kf8 {[%emt 0:00:02]} 15. h4 {[%emt 0:00:36]} Bf6 {[%emt 0:00:13]} 16. Nbd2 {[%emt 0:04:33]} Na5 {[%emt 0:00:23]} 17. Ne5 {[%emt 0:13:49]} Bxe5 {[%emt 0:06:38]} 18. Rxe5 {[%emt 0:00:16]} Qf6 {[%emt 0:34:35]} 19. Re7 {[%emt 0:06:03]} Nxb3 {[%emt 0:00:06]} 20. Qxb3 {[%emt 0:00:29]} Bc6 {[%emt 0:01:53]} 21. Rae1 {[%emt 0:14:09]} Kg7 {[%emt 0:02:02]} 22. Rxf7+ {[%emt 0:14:38]} Qxf7 {[%emt 0:00:02]} 23. Re7 {[%emt 0:00:07]} Qxe7 {[%emt 0:03:10]} 24. dxe7 {[%emt 0:01:19]} Rhe8 {[%emt 0:00:11]} 25. Qb4 {[%emt 0:02:55]} Kf7 {[%emt 0:00:09]} 26. Qxd4 {[%emt 0:07:16]} Rxe7 {[%emt 0:00:23]} 27. f3 {[%emt 0:00:16]} Rae8 {[%emt 0:05:07]} 28. Nb3 {[%emt 0:02:29]} Re5 {[%emt 0:16:33]} 29. Qf4+ {[%emt 0:08:48]} Rf5 {[%emt 0:02:16]} 30. Qh6 {[%emt 0:01:19]} Rh5 {[%emt 0:01:58]} 31. Qf4+ {[%emt 0:00:06]} Rf5 {[%emt 0:00:15]} 32. Qd2 {[%emt 0:03:52]} Rd5 {[%emt 0:07:21]} 33. Nd4 {[%emt 0:03:50]} Re7 {[%emt 0:06:38]} 34. b4 {[%emt 0:02:43]} h5 {[%emt 0:03:33]} 35. Kf2 {[%emt 0:03:59]} Kg7 {[%emt 0:01:57]} 36. Qc3 {[%emt 0:01:33]} Kh7 {[%emt 0:00:32]} 37. Ne2 {[%emt 0:04:03]} Rf5 {[%emt 0:07:57]} 38. Qd2 {[%emt 0:01:00]} Ree5 {[%emt 0:01:56]} 39. Nf4 {[%emt 0:00:49]} g5 {[%emt 0:00:41]} 40. Nxh5 {[%emt 0:05:06]} gxh4 {[%emt 0:00:21]} 41. Nf4 {[%emt 0:30:32]} Rf6 {[%emt 0:07:50]} 42. Nh3 {[%emt 0:00:00]} Ref5 {[%emt 0:04:19]} 43. Kg1 {[%emt 0:00:00]} Rg6 {[%emt 0:11:43]} 44. Kh2 {[%emt 0:00:00]} Rff6 {[%emt 0:01:55]} 45. Qe1 {[%emt 0:00:00]} Rh6 {[%emt 0:00:37]} 46. Qe5 {[%emt 0:00:00]} Kg7 {[%emt 0:02:07]} 47. Nf2 {[%emt 0:00:00]} Rhg6 {[%emt 0:00:55]} 48. Ng4 {[%emt 0:00:00]} Rxg4 {[%emt 0:00:14]} 49. fxg4 {[%emt 0:00:00]} Kf7 {[%emt 0:00:23]} 50. Kh3 {[%emt 0:00:00]} Re6 {[%emt 0:02:15]} 51. Qh5+ {[%emt 0:02:43]} Kg7 {[%emt 0:00:44]} 52. Qg5+ {[%emt 0:00:32]} Kf7 {[%emt 0:00:19]} 53. Qxh4 {[%emt 0:01:32]} Re3+ {[%emt 0:02:18]} 54. g3 {[%emt 0:00:46]} Re6 {[%emt 0:00:38]} 55. Qh7+ {[%emt 0:00:26]} Ke8 {[%emt 0:00:29]} 56. Kh4 {[%emt 0:00:37]} Kd8 {[%emt 0:00:57]} 57. Kh5 {[%emt 0:01:16]} Kc7 {[%emt 0:00:36]} 58. Qf7 {[%emt 0:00:26]} Be4 {[%emt 0:00:42]} 59. g5 {[%emt 0:00:36]} Kd6 {[%emt 0:00:36]} 60. g4 {[%emt 0:00:17]} Bb1 {[%emt 0:00:36]} 61. Qf8+ {[%emt 0:00:50]} Kc7 {[%emt 0:00:20]} 62. Qc5+ {[%emt 0:00:26]} Kd8 {[%emt 0:00:07]} 63. Qf8+ {[%emt 0:00:16]} Kc7 {[%emt 0:00:01]} 64. a3 {[%emt 0:00:47]} Be4 {[%emt 0:00:20]} 65. Qg8 {[%emt 0:00:19]} Kd6 {[%emt 0:00:12]} 66. Qc8 {[%emt 0:00:40]} Ke7 {[%emt 0:00:15]} 67. Qb8 {[%emt 0:00:22]} Rc6 {[%emt 0:01:36]} 68. Qg8 {[%emt 0:00:33]} d5 {[%emt 0:01:04]} 69. Qg7+ {[%emt 0:00:29]} Ke8 {[%emt 0:00:21]} 70. Kh4 {[%emt 0:00:38]} Rd6 {[%emt 0:00:41]} 71. Kg3 {[%emt 0:00:16]} Bg6 {[%emt 0:00:33]} 72. Qc7 {[%emt 0:00:34]} Re6 {[%emt 0:00:20]} 73. Qc8+ {[%emt 0:00:42]} Ke7 {[%emt 0:00:21]} 74. Qb7+ {[%emt 0:00:16]} Kf8 {[%emt 0:00:30]} 75. Qxd5 {[%emt 0:00:14]} Bf7 {[%emt 0:00:26]} 76. Qd4 {[%emt 0:00:41]} Kg8 {[%emt 0:00:03]} 77. Kf4 {[%emt 0:00:11]} Kh7 {[%emt 0:00:53]} 78. Kf5 {[%emt 0:00:30]} Kg8 {[%emt 0:00:29]} 79. Qd7 {[%emt 0:00:53]} Rg6 {[%emt 0:00:17]} 80. Qd8+ {[%emt 0:00:21]} Kg7 {[%emt 0:00:09]} 81. Qc8 {[%emt 0:00:21]} Rd6 {[%emt 0:00:54]} 82. Qb8 {[%emt 0:00:47]} Re6 {[%emt 0:00:32]} 83. Qa7 {[%emt 0:00:22]} Kg8 {[%emt 0:00:21]} 84. Qd4 {[%emt 0:00:51]} Rg6 {[%emt 0:00:20]} 85. Qe4 {[%emt 0:00:25]} Kg7 {[%emt 0:00:23]} 86. Qb7 {[%emt 0:00:35]} Re6 {[%emt 0:00:26]} 87. Qh1 {[%emt 0:00:32]} Rg6 {[%emt 0:00:23]} 88. Qc1 {[%emt 0:00:23]} Re6 {[%emt 0:00:34]} 89. Qc3+ {[%emt 0:00:12]} Kh7 {[%emt 0:00:56]} 90. Qc8 {[%emt 0:00:17]} Rg6 {[%emt 0:01:06]} 91. Qf8 {[%emt 0:00:17]} Be6+ {[%emt 0:00:20]} 92. Ke5 {[%emt 0:00:49]} Bc4 {[%emt 0:00:40]} 93. Kf4 {[%emt 0:00:20]} Ba2 {[%emt 0:00:34]} 94. Kg3 {[%emt 0:00:36]} Rg7 {[%emt 0:00:32]} 95. Kh4 {[%emt 0:01:00]} Bf7 {[%emt 0:00:26]} 96. g6+ {[%emt 0:00:12]} Bxg6 {[%emt 0:00:29]} 97. Qd6 {[%emt 0:00:21]} Bf7 {[%emt 0:00:36]} 98. Qxa6 {[%emt 0:00:10]} Bc4 {[%emt 0:00:13]} 99. a4 {[%emt 0:00:12]} Be2 {[%emt 0:00:45]} 100. g5 {[%emt 0:00:45]} Bc4 {[%emt 0:00:30]} 101. a5 {[%emt 0:00:35]} Bd3 {[%emt 0:00:29]} 102. Qc6 {[%emt 0:00:17]} Bc4 {[%emt 0:00:25]} 103. a6 {[%emt 0:00:13]} Rg6 {[%emt 0:00:05]} 104. Qb7+ {[%emt 0:00:33]} Rg7 {[%emt 0:00:03]} 105. Qe4+ {[%emt 0:00:06]} 1-0